bitfinex-derivatives/quotes_SOLF0:USTF0_20230103
["timestamp","ask_amount","ask_price","bid_price","bid_amount"]
[1672773749195,34.48029079,12.996,12.983,5.0]
[1672773749613,0.0657416,12.994,12.985,0.06281731]
[1672773750663,0.0657416,12.994,12.985,38.12281731]
[1672773751502,0.0657416,12.994,12.986,5.0]
[1672773751716,0.0657416,12.994,12.988,37.91]
[1672773751926,57.62,13.017,12.993,38.06]
[1672773752137,50.0,13.009,12.986,5.0]
[1672773752347,49.1619,13.008,12.986,5.0]
[1672773752660,5.0,12.995,12.986,5.0]
[1672773752865,5.0,12.995,12.988,5.0]
[1672773753076,0.07014843,12.994,12.988,5.0]
[1672773753285,0.07014843,12.994,12.987,0.06323976]
[1672773753503,5.06653283,12.995,12.986,0.06586952]
[1672773753713,5.0,12.994,12.98,5.0]
[1672773753917,5.0,12.994,12.977,43.18]
[1672773754132,49.9064,12.994,12.977,43.18]
[1672773754339,34.48029079,12.986,12.977,43.18]
[1672773754546,5.0,12.985,12.977,38.18]
[1672773755395,5.0,12.985,12.976,0.06025148]
[1672773755815,49.9064,12.985,12.976,0.06025148]
[1672773756231,34.54668834,12.986,12.976,0.06025148]
[1672773756551,34.54668834,12.986,12.978,5.0]
[1672773756760,34.54668834,12.986,12.98,38.02]
[1672773756967,34.54668834,12.986,12.981,5.0]
[1672773757174,0.06639755,12.986,12.984,37.81]
[1672773757388,0.06520565,12.99,12.984,37.81]
[1672773757594,0.06688202,12.992,12.984,37.81]
[1672773757812,0.06093332,12.993,12.984,37.81]
[1672773758022,0.06093332,12.993,12.984,37.87464378]
[1672773758760,0.06093332,12.993,12.984,0.06464378]
[1672773758970,0.06093332,12.993,12.984,38.24464378]
[1672773759283,0.06093332,12.993,12.987,38.18]
[1672773759600,0.06093332,12.993,12.985,5.0]
[1672773759807,0.06093332,12.993,12.984,0.06464378]
[1672773760335,0.06093332,12.993,12.99,38.18]
[1672773760540,34.48029079,12.995,12.991,5.0]
[1672773760852,0.07057645,12.996,12.99,38.18]
[1672773761064,34.48029079,12.995,12.99,38.18]
[1672773761907,34.48029079,12.995,12.987,0.06136477]
[1672773762331,0.07057645,12.996,12.987,0.06136477]
[1672773762747,34.48029079,12.995,12.987,0.06136477]
[1672773762960,5.0,12.994,12.987,0.06136477]
[1672773763168,34.48029079,12.995,12.987,0.06136477]
[1672773763378,34.48029079,12.995,12.989,38.18]
[1672773763801,0.07057645,12.996,12.99,5.0]
[1672773764853,0.07057645,12.996,12.993,38.18]
[1672773765166,0.0656794,12.999,12.993,38.18]
[1672773765375,0.0648929,13.001,12.993,38.18]
[1672773766000,0.0648929,13.001,12.991,0.06503635]
[1672773766427,0.0648929,13.001,12.993,37.81]
[1672773766637,0.0648929,13.001,12.994,5.0]
[1672773767060,0.0648929,13.001,12.993,37.81]
[1672773768422,44.6388,13.004,13.001,0.02213941]
[1672773769475,34.48029079,13.005,13.001,0.02213941]
[1672773771891,5.0,13.004,13.001,0.02213941]
[1672773772103,34.48029079,13.005,13.001,0.02213941]
[1672773774202,5.07068114,13.007,13.001,0.02213941]
[1672773774413,0.21669687,13.001,12.998,0.06652115]
[1672773774624,0.21669687,13.001,12.995,0.06362731]
[1672773774940,0.21669687,13.001,12.993,0.06157347]
[1672773775253,0.21669687,13.001,12.992,0.06998129]
[1672773775464,34.48029079,12.995,12.992,0.06998129]
[1672773775675,34.48029079,12.995,12.989,0.06810141]
[1672773776194,0.0686426,12.998,12.989,0.06810141]
[1672773776409,0.0686426,12.998,12.991,15.51970921]
[1672773776618,0.0686426,12.998,12.992,5.0]
[1672773777038,0.0686426,12.998,12.991,5.0]
[1672773777251,0.0686426,12.998,12.991,20.51970921]
[1672773777671,0.0686426,12.998,12.991,5.0]
[1672773778194,0.0686426,12.998,12.991,20.51970921]
[1672773778722,0.0686426,12.998,12.991,5.0]
[1672773780092,0.0686426,12.998,12.993,38.06]
[1672773780298,0.0686426,12.998,12.994,5.0]
[1672773780506,0.21669687,13.001,12.997,38.11]
[1672773780824,0.21669687,13.001,12.998,5.0]
[1672773782606,0.00669687,13.001,13.0,15.51970921]
[1672773782816,0.00669687,13.001,12.995,0.06134879]
[1672773784507,34.48029079,12.996,12.984,43.18]
[1672773784822,34.48029079,12.994,12.984,43.18]
[1672773785031,34.48029079,12.994,12.984,5.0]
[1672773785451,34.48029079,12.994,12.984,42.91]
[1672773785666,34.54283664,12.994,12.984,42.97042218]
[1672773786186,34.54283664,12.994,12.984,37.97042218]
[1672773786604,0.06254585,12.994,12.984,37.97042218]
[1672773786818,34.54283664,12.994,12.984,37.97042218]
[1672773788601,0.06254585,12.994,12.984,37.97042218]
[1672773788811,34.54283664,12.994,12.984,37.97042218]
[1672773789543,0.06254585,12.994,12.984,37.97042218]
[1672773790491,34.54283664,12.994,12.984,37.97042218]
[1672773791647,34.54283664,12.994,12.984,0.06042218]
[1672773792908,5.0,12.993,12.984,0.06042218]
[1672773793219,5.0,12.993,12.97,15.51970921]
[1672773793220,34.48029079,12.985,12.978,38.07]
[1672773793429,34.48029079,12.985,12.974,5.0]
[1672773793430,34.48029079,12.985,12.974,37.91]
[1672773793645,34.48029079,12.985,12.975,5.0]
[1672773794063,0.06373362,12.985,12.975,5.0]
[1672773794270,34.48029079,12.984,12.975,5.06701484]
[1672773794590,0.06373362,12.985,12.975,5.06701484]
[1672773794803,34.48029079,12.984,12.975,5.06701484]
[1672773795009,34.48029079,12.984,12.975,0.06701484]
[1672773795429,0.06373362,12.985,12.975,0.06701484]
[1672773795642,34.48029079,12.984,12.975,0.06701484]
[1672773795848,5.0,12.983,12.975,0.06701484]
[1672773796480,0.06373362,12.985,12.975,0.06701484]
[1672773796692,34.48029079,12.984,12.975,0.06701484]
[1672773799524,0.06373362,12.985,12.98,38.18]
[1672773799734,0.06373362,12.985,12.981,5.0]
[1672773799951,34.48029079,12.984,12.978,0.07001366]
[1672773800684,0.06373362,12.985,12.978,0.07001366]
[1672773800890,34.48029079,12.984,12.978,0.07001366]
[1672773801107,0.06373362,12.985,12.981,38.06]
[1672773801623,34.48029079,12.984,12.981,38.06]
[1672773801833,41.7194,12.992,12.981,38.06]
[1672773801834,41.7194,12.992,12.982,5.0]
[1672773802883,41.78475354,12.992,12.982,5.06205445]
[1672773805304,41.78475354,12.992,12.982,0.06205445]
[1672773807830,5.0,12.991,12.982,0.06205445]
[1672773808556,41.78475354,12.992,12.982,0.06205445]
[1672773810770,0.06535354,12.992,12.982,0.06205445]
[1672773811180,0.06535354,12.992,12.986,38.18]
[1672773811391,0.06535354,12.992,12.987,5.0]
[1672773812236,0.06535354,12.992,12.986,38.18]
[1672773814227,0.06535354,12.992,12.987,5.0]
[1672773814549,76.62039079,13.003,12.99,20.51970921]
[1672773814752,34.48029079,13.003,12.99,20.51970921]
[1672773815493,0.06586172,13.0,12.991,0.06659305]
[1672773816329,34.48029079,12.993,12.991,0.06659305]
[1672773816544,0.06586172,13.0,12.989,38.02]
[1672773816545,0.06943085,12.997,12.989,53.42970921]
[1672773817070,0.06943085,12.997,12.99,5.0]
[1672773818435,0.06943085,12.997,12.989,58.42970921]
[1672773818850,0.06943085,12.997,12.989,53.42970921]
[1672773820216,0.06943085,12.997,12.989,37.91]
[1672773820639,0.06943085,12.997,12.989,53.42970921]
[1672773821794,0.06943085,12.997,12.989,37.91]
[1672773822115,0.06943085,12.997,12.989,53.42970921]
[1672773823373,0.06943085,12.997,12.989,37.91]
[1672773823585,0.06943085,12.997,12.988,0.06735394]
[1672773824317,34.48029079,12.993,12.988,0.06735394]
[1672773824521,41.7767,12.996,12.988,0.06735394]
[1672773824737,5.0,12.995,12.988,0.06735394]
[1672773824948,34.48029079,12.993,12.988,0.06735394]
[1672773826945,5.0,12.995,12.988,0.06735394]
[1672773827154,4.86161149,12.995,12.988,0.06735394]
[1672773827785,41.7767,12.996,12.988,0.06735394]
[1672773828308,34.48029079,12.993,12.988,0.06735394]
[1672773828521,5.0,12.992,12.98,5.0]
[1672773829146,34.48029079,12.983,12.976,38.02]
[1672773829782,34.48029079,12.983,12.977,15.27]
[1672773830624,0.06457177,12.984,12.977,15.27]
[1672773831362,5.0,12.982,12.975,15.33181713]
[1672773833361,34.48029079,12.983,12.975,15.33181713]
[1672773836833,0.06457177,12.984,12.975,15.33181713]
[1672773837462,34.48029079,12.983,12.975,15.33181713]
[1672773839666,34.48029079,12.983,12.976,5.0]
[1672773839881,34.48029079,12.983,12.982,15.27]
[1672773841243,33.68862795,12.983,12.982,15.27]
[1672773841453,0.06574856,12.987,12.982,15.27]
[1672773841663,33.68862795,12.983,12.978,0.06365302]
[1672773844295,5.0,12.982,12.978,0.06365302]
[1672773844501,33.68862795,12.979,12.978,0.06365302]
[1672773844821,5.0,12.982,12.973,15.27]
[1672773845032,33.68862795,12.974,12.973,15.27]
[1672773846818,0.06198963,12.978,12.973,15.27]
[1672773847029,33.68862795,12.974,12.973,15.27]
[1672773847240,0.06198963,12.978,12.973,15.27]
[1672773847449,0.06198963,12.978,12.977,15.27]
[1672773847658,33.75601532,12.982,12.977,15.27]
[1672773848710,33.68862795,12.992,12.98,15.27]
[1672773848920,33.68862795,12.992,12.986,5.0]
[1672773849446,42.9442,12.994,12.985,15.27]
[1672773849649,33.68862795,12.992,12.985,15.27]
[1672773850702,33.68862795,12.986,12.985,15.27]
[1672773853018,0.06957504,12.99,12.985,15.27]
[1672773853228,0.06957504,12.99,12.981,0.06744366]
[1672773853229,33.68862795,12.986,12.982,15.27]
[1672773853435,33.68862795,12.983,12.982,15.27]
[1672773854176,33.68862795,12.983,12.97,5.0]
[1672773854486,5.0,12.982,12.977,15.27]
[1672773855119,33.68862795,12.983,12.977,15.27]
[1672773855745,33.68862795,12.983,12.965,5.0]
[1672773855959,33.68862795,12.982,12.968,15.27]
[1672773856171,70.16,12.985,12.968,15.27]
[1672773856381,33.68862795,12.972,12.968,15.27]
[1672773857115,0.06190511,12.975,12.968,15.27]
[1672773857330,0.06014868,12.976,12.968,15.27]
[1672773857645,0.06226244,12.977,12.968,15.27]
[1672773857853,0.06005824,12.977,12.968,15.33045012]
[1672773858065,33.68862795,12.972,12.968,15.33045012]
[1672773858271,48.93862795,12.969,12.916,15.4]
[1672773858486,33.68862795,12.943,12.929,16.31137205]
[1672773858691,57.89,12.955,12.919,16.31137205]
[1672773858910,57.89,12.955,12.917,5.0]
[1672773858911,33.68862795,12.953,12.929,16.31137205]
[1672773859223,15.25,12.949,12.936,0.06558922]
[1672773859433,0.06758003,12.946,12.938,0.06093051]
[1672773859636,5.0,12.952,12.94,15.27]
[1672773859954,5.0,12.948,12.943,15.27]
[1672773860480,5.0,12.952,12.947,15.16]
[1672773860900,33.68862795,12.953,12.947,15.16]
[1672773861111,0.06875783,12.954,12.947,15.16]
[1672773861426,0.06875783,12.954,12.949,15.27]
[1672773861637,33.68862795,12.952,12.949,15.27]
[1672773861847,33.68862795,12.952,12.945,0.06142898]
[1672773862160,5.0,12.951,12.945,0.06142898]
[1672773863212,33.68862795,12.952,12.945,0.06142898]
[1672773863418,33.68862795,12.946,12.933,15.27]
[1672773863633,5.0,12.945,12.934,5.0]
[1672773863843,33.68862795,12.943,12.938,15.27]
[1672773864157,57.82,12.971,12.941,15.16]
[1672773864366,5.0,12.97,12.948,16.31137205]
[1672773864687,33.68862795,12.962,12.958,15.23]
[1672773865417,0.07100869,12.965,12.955,15.33498221]
[1672773865626,0.07100869,12.965,12.958,15.27]
[1672773865837,33.68862795,12.962,12.958,15.27]
[1672773866782,0.07100869,12.965,12.959,5.0]
[1672773866783,0.00957971,12.965,12.959,5.0]
[1672773867940,0.00957971,12.965,12.964,38.09]
[1672773868144,33.68862795,12.982,12.964,38.09]
[1672773868355,33.68862795,12.982,12.965,5.0]
[1672773868563,33.68862795,12.972,12.968,5.0]
[1672773868992,33.68862795,12.972,12.964,5.0]
[1672773870142,0.06160739,12.973,12.967,38.3]
[1672773870352,0.06160739,12.973,12.97,38.3]
[1672773870676,0.06294123,12.976,12.971,5.0]
[1672773870884,33.68862795,12.972,12.971,5.0]
[1672773871198,33.68862795,12.972,12.97,38.3]
[1672773872143,0.06016066,12.976,12.97,38.3]
[1672773872355,0.06016066,12.976,12.971,5.0]
[1672773872985,0.00016066,12.976,12.973,38.3]
[1672773873195,33.68862795,12.981,12.974,5.0]
[1672773873407,33.68862795,12.981,12.977,38.3]
[1672773873612,33.68862795,12.981,12.978,5.0]
[1672773874033,5.0,12.993,12.978,5.0]
[1672773874034,0.0618146,12.984,12.98,38.3]
[1672773874343,0.07109461,12.987,12.981,5.0]
[1672773874558,0.07011552,12.989,12.981,5.0]
[1672773875396,33.68862795,12.982,12.979,0.06037499]
[1672773875609,33.68862795,12.982,12.977,38.3]
[1672773876345,50.0,13.004,12.981,38.3]
[1672773876559,50.0,13.004,12.984,38.3]
[1672773876766,50.0,13.004,12.985,5.0]
[1672773876979,50.0,12.994,12.985,5.0]
[1672773877188,5.0,12.993,12.982,5.0]
[1672773877401,0.06534353,12.992,12.983,0.06440099]
[1672773890115,49.79944353,12.992,12.983,0.06440099]
[1672773890325,5.0,12.991,12.983,9.9e-07]
[1672773894950,50.0,12.984,12.983,9.9e-07]
[1672773895159,5.0,12.983,12.979,0.06698611]
[1672773895370,5.0,12.983,12.976,0.06122715]
[1672773895581,5.0,12.983,12.975,0.06231401]
[1672773895785,5.0,12.983,12.974,0.06429956]
[1672773895998,5.0,12.981,12.974,0.0671857]
[1672773896835,5.0,12.981,12.974,8.57e-05]
[1672773897049,5.0,12.981,12.964,5.0]
[1672773898105,0.06675225,12.978,12.969,0.06536928]
[1672773899674,0.06675225,12.978,12.97,38.3]
[1672773899889,0.06675225,12.978,12.973,38.3]
[1672773900203,0.06675225,12.978,12.974,5.0]
[1672773902517,0.06675225,12.978,12.977,38.3]
[1672773902833,0.0629365,12.982,12.977,38.3]
[1672773903040,0.06794841,12.984,12.981,38.3]
[1672773903250,0.06910199,12.987,12.982,5.0]
[1672773903461,0.0610014,12.989,12.982,5.0]
[1672773903779,0.0610014,12.989,12.981,38.3]
[1672773904091,0.0610014,12.989,12.98,0.06460096]
[1672773904296,5.0610014,12.989,12.98,0.06460096]
[1672773905773,0.0610014,12.989,12.98,0.06460096]
[1672773906086,0.0610014,12.989,12.981,38.3]
[1672773906290,0.0610014,12.989,12.982,5.0]
[1672773907453,0.0610014,12.989,12.981,38.3]
[1672773908182,0.0610014,12.989,12.984,38.3]
[1672773908503,0.0610014,12.989,12.985,5.0]
[1672773910287,0.0610014,12.989,12.984,38.3]
[1672773910601,0.0610014,12.989,12.982,5.0]
[1672773910917,0.0610014,12.989,12.98,0.06460096]
[1672773911543,5.0,12.992,12.989,0.07425711]
[1672773911750,5.0,12.991,12.981,5.0]
[1672773912171,5.0,12.991,12.979,5.0]
[1672773912595,0.06237652,12.99,12.979,5.0]
[1672773912806,0.06237652,12.99,12.98,0.0684255]
[1672773915963,0.06237652,12.99,12.982,38.3]
[1672773916180,0.06237652,12.99,12.983,5.0]
[1672773916914,0.06237652,12.99,12.985,38.07]
[1672773917227,0.06237652,12.99,12.986,5.0]
[1672773917856,0.06237652,12.99,12.985,38.07]
[1672773918490,0.06237652,12.99,12.986,5.0]
[1672773919433,0.06237652,12.99,12.985,38.07]
[1672773920800,0.06237652,12.99,12.986,5.0]
[1672773921640,0.06237652,12.99,12.985,38.07]
[1672773922899,0.06237652,12.99,12.986,5.0]
[1672773923840,0.06237652,12.99,12.985,38.07]
[1672773925734,5.0,12.998,12.99,0.06129157]
[1672773925954,50.0,12.994,12.981,38.3]
[1672773926154,5.0,12.993,12.982,5.0]
[1672773926784,0.0681866,12.992,12.983,0.06052247]
[1672773926999,5.0681866,12.992,12.983,0.06052247]
[1672773927206,0.0681866,12.992,12.983,0.06052247]
[1672773928259,0.0681866,12.992,12.985,38.15]
[1672773928470,0.0681866,12.992,12.986,5.0]
[1672773930359,0.0681866,12.992,12.988,15.21]
[1672773930676,0.0681866,12.992,12.989,5.0]
[1672773930887,0.06399858,12.995,12.989,5.0]
[1672773931097,0.0648252,12.997,12.989,5.0]
[1672773931412,0.06755885,12.998,12.989,5.0]
[1672773931623,0.06755885,12.998,12.991,15.25]
[1672773931827,0.06755885,12.998,12.993,15.18]
[1672773932044,0.06755885,12.998,12.996,15.14]
[1672773932256,45.69920767,13.002,12.996,15.14]
[1672773933408,0.06870767,13.002,12.996,15.14]
[1672773934669,5.0,13.0,12.992,0.07081034]
[1672773935513,45.1391,12.999,12.992,0.07081034]
[1672773935721,5.0,12.998,12.992,0.07081034]
[1672773937925,4.89607,12.998,12.992,0.07081034]
[1672773938241,45.1391,12.999,12.992,0.07081034]
[1672773949069,0.06870767,13.002,12.992,0.07081034]
[1672773950116,0.00404706,13.002,12.992,0.07081034]
[1672773950640,37.91404706,13.002,12.992,1.034e-05]
[1672773950852,5.0,13.001,12.992,1.034e-05]
[1672773951053,5.0,13.001,12.983,5.0]
[1672773952011,0.06322068,12.997,12.987,0.06665762]
[1672773955898,50.0,12.994,12.987,0.06665762]
[1672773956213,47.0507,12.993,12.987,0.06665762]
[1672773956417,5.0,12.992,12.987,0.06665762]
[1672773956630,5.0,12.992,12.975,43.13]
[1672773957582,0.06573262,12.989,12.979,0.0683789]
[1672773960101,0.06573262,12.989,12.971,42.7924]
[1672773960102,50.0,12.984,12.971,38.13]
[1672773960315,5.0,12.983,12.972,5.0]
[1672773961047,0.06780437,12.982,12.973,0.07038398]
[1672773963144,50.0,12.974,12.963,5.0]
[1672773963568,5.0,12.973,12.963,5.0]
[1672773963779,5.0,12.981,12.963,5.0]
[1672773963991,5.0,12.983,12.969,38.08]
[1672773964201,0.06966532,12.981,12.971,0.06935537]
[1672773966405,0.06966532,12.981,12.973,38.13]
[1672773966724,0.06966532,12.981,12.974,5.0]
[1672773967353,0.06966532,12.981,12.973,38.13]
[1672773967564,5.06966532,12.981,12.971,0.06935537]
[1672773971245,5.06966532,12.981,12.971,5.537e-05]
[1672773974177,5.0,12.974,12.971,5.537e-05]
[1672773974392,5.0,12.974,12.968,0.0683909]
[1672773974604,5.0,12.974,12.966,0.06247903]
[1672773976599,50.0614798,12.975,12.966,0.06247903]
[1672773976600,0.0614798,12.975,12.966,0.06247903]
[1672773977016,0.0614798,12.975,12.966,5.06247903]
[1672773978177,0.0614798,12.975,12.969,38.08]
[1672773978490,0.0614798,12.975,12.97,5.0]
[1672773979117,0.0614798,12.975,12.972,38.13]
[1672773979333,0.06634339,12.978,12.972,38.13]
[1672773979537,5.0,12.983,12.972,38.13]
[1672773979751,0.06700192,12.98,12.973,0.0656666]
[1672773981541,0.06700192,12.98,12.973,5.0656666]
[1672773981854,0.06700192,12.98,12.973,0.0656666]
[1672773982063,0.06700192,12.98,12.973,5.0656666]
[1672773982693,0.06700192,12.98,12.973,0.0656666]
[1672773983642,44.3627,12.984,12.98,0.07431414]
[1672773989314,5.0,12.983,12.98,1.414e-05]
[1672773990786,15.17,12.981,12.969,15.24]
[1672773990992,5.0,12.974,12.962,5.0]
[1672773991204,5.0,12.974,12.967,15.25]
[1672773991729,5.0,12.974,12.965,15.24]
[1672773992051,5.06800119,12.974,12.965,0.0649865]
[1672773992678,0.06800119,12.974,12.965,0.0649865]
[1672773994776,0.06800119,12.974,12.965,8.65e-05]
[1672773994993,50.0,12.966,12.965,8.65e-05]
[1672773995202,50.0,12.966,12.957,15.25]
[1672773995413,5.0,12.965,12.957,15.25]
[1672773995829,5.0,12.965,12.955,15.23]
[1672773996040,5.0,12.965,12.956,0.07080806]
[1672773996250,0.06900464,12.966,12.956,0.07080806]
[1672773996675,50.06900464,12.966,12.956,0.07080806]
[1672773996992,55.06900464,12.966,12.956,0.07080806]
[1672773997302,50.06900464,12.966,12.957,15.25]
[1672773997515,50.06900464,12.966,12.958,5.0]
[1672773997721,0.06900464,12.966,12.958,5.0]
[1672773997931,50.06900464,12.966,12.957,15.25]
[1672773999400,50.06900464,12.966,12.956,0.07080806]
[1672774000137,50.06900464,12.966,12.957,15.29]
[1672774001091,0.06900464,12.966,12.957,15.29]
[1672774001823,50.06900464,12.966,12.957,15.29]
[1672774003500,0.06900464,12.966,12.957,15.29]
[1672774003713,50.06900464,12.966,12.957,15.29]
[1672774004026,20.28,12.965,12.956,0.07080806]
[1672774004345,5.0,12.964,12.956,0.07080806]
[1672774005389,65.7506,12.965,12.956,0.07080806]
[1672774007389,60.7506,12.965,12.956,0.07080806]
[1672774007811,45.4706,12.965,12.956,0.07080806]
[1672774008965,45.4706,12.965,12.958,15.29]
[1672774009181,45.4706,12.965,12.959,5.0]
[1672774009392,50.06900464,12.966,12.959,5.0]
[1672774009707,50.06900464,12.966,12.965,0.17239941]
[1672774009914,50.0,12.966,12.965,0.17239941]
[1672774010332,50.0,12.966,12.961,0.06317167]
[1672774011600,44.98601201,12.97,12.961,0.06317167]
[1672774011805,50.0,12.966,12.961,0.06317167]
[1672774016120,44.98601201,12.97,12.961,0.06317167]
[1672774016857,50.0,12.967,12.961,0.06317167]
[1672774017069,5.0,12.966,12.961,0.06317167]
[1672774017587,50.0,12.967,12.961,0.06317167]
[1672774018635,50.0,12.967,12.962,15.23]
[1672774018846,0.07101201,12.97,12.965,15.24]
[1672774019061,92.0033,12.977,12.969,15.24]
[1672774019271,92.0033,12.977,12.971,15.25]
[1672774019481,50.0,12.977,12.972,5.0]
[1672774019901,50.0,12.977,12.97,5.0]
[1672774019902,5.0,12.984,12.974,15.29]
[1672774020113,42.0033,12.983,12.976,15.29]
[1672774020429,42.0033,12.983,12.978,15.25]
[1672774020743,0.06798136,12.984,12.978,15.25]
[1672774021789,0.06798136,12.984,12.974,15.31790378]
[1672774022211,0.06798136,12.984,12.977,5.0]
[1672774022740,0.06798136,12.984,12.976,15.22]
[1672774025471,0.06798136,12.984,12.974,15.35790378]
[1672774025678,50.0,12.977,12.974,0.06790378]
[1672774025892,50.0,12.977,12.971,0.06785156]
[1672774026524,0.06422102,12.98,12.971,0.06785156]
[1672774026733,0.06422102,12.98,12.974,15.22]
[1672774026943,0.06422102,12.98,12.975,20.24]
[1672774027157,0.06422102,12.98,12.977,15.23]
[1672774027365,0.06368678,12.983,12.977,15.23]
[1672774027575,5.06195586,12.985,12.977,15.23]
[1672774027889,0.06195586,12.985,12.977,15.23]
[1672774031043,0.06195586,12.985,12.981,15.29]
[1672774031357,0.06195586,12.985,12.982,5.0]
[1672774031568,0.06132907,12.988,12.981,15.29]
[1672774031987,60.6092,12.993,12.988,0.13247053]
[1672774032406,45.4292,12.993,12.988,0.13247053]
[1672774034082,45.4292,12.993,12.988,15.35247053]
[1672774034299,0.06554458,12.995,12.988,15.35247053]
[1672774035874,0.06554458,12.995,12.988,0.13247053]
[1672774040818,0.06554458,12.995,12.992,15.23]
[1672774041027,0.06120483,12.998,12.993,20.25]
[1672774041232,0.06026688,13.0,12.993,5.0]
[1672774041443,0.06577532,13.001,12.992,15.30138464]
[1672774041869,0.06577532,13.001,12.992,0.07138464]
[1672774043124,0.06577532,13.001,12.992,15.36138464]
[1672774043442,0.06577532,13.001,12.994,15.25]
[1672774043756,0.06577532,13.001,12.995,5.0]
[1672774044175,0.06577532,13.001,12.994,15.25]
[1672774046692,15.28,13.003,13.001,0.06412701]
[1672774047960,15.28,13.003,12.993,5.0]
[1672774047961,20.18,13.002,12.993,0.06003925]
[1672774048166,65.17,12.998,12.988,0.13247053]
[1672774048378,5.0,12.997,12.988,0.13247053]
[1672774049115,0.06566993,12.997,12.988,0.19404925]
[1672774049319,0.06566993,12.997,12.991,15.29]
[1672774049535,0.06566993,12.997,12.992,5.0]
[1672774050592,0.06566993,12.997,12.991,15.29]
[1672774053431,0.06566993,12.997,12.992,15.22]
[1672774056891,0.06566993,12.997,12.991,15.29]
[1672774057318,0.06566993,12.997,12.992,5.0]
[1672774057529,0.06566993,12.997,12.993,15.29]
[1672774057949,0.06566993,12.997,12.994,5.0]
[1672774058155,0.06739671,13.0,12.994,20.29]
[1672774058364,0.06815644,13.002,12.994,20.29]
[1672774060471,0.06815644,13.002,12.994,15.29]
[1672774062044,42.5442,13.003,13.002,0.08988673]
[1672774062462,0.07092577,13.002,12.995,5.0]
[1672774062675,0.07092577,13.002,12.994,15.29]
[1672774063523,0.07092577,13.002,12.993,0.07045849]
[1672774064150,0.07092577,13.002,12.994,15.29]
[1672774071293,0.07092577,13.002,12.997,15.24]
[1672774072132,0.07092577,13.002,12.998,20.25]
[1672774072451,0.07092577,13.002,13.0,15.29]
[1672774072977,0.07092577,13.002,12.997,15.25]
[1672774073180,0.07092577,13.002,12.996,0.07074933]
[1672774075603,0.06335235,13.003,13.002,0.03594851]
[1672774075918,7.62,13.005,13.002,0.03594851]
[1672774076444,7.59,13.006,13.002,0.03594851]
[1672774076964,7.62,13.005,13.002,0.03594851]
[1672774078433,7.62,13.005,12.999,0.06350052]
[1672774078650,5.0,13.004,12.999,0.06350052]
[1672774079171,7.62,13.005,12.999,0.06350052]
[1672774089890,7.68576,13.007,12.999,0.06350052]
[1672774090521,5.0,13.006,12.999,0.06350052]
[1672774090737,15.24,13.002,12.991,15.18]
[1672774090947,5.0,13.001,12.991,15.18]
[1672774091574,5.0,13.001,12.992,15.24]
[1672774091786,0.06537158,13.001,12.992,15.30999262]
[1672774096521,0.06537158,13.001,12.992,0.06999262]
[1672774099779,15.24,12.998,12.992,0.06999262]
[1672774099984,20.24,12.997,12.992,0.06999262]
[1672774100199,20.24,12.996,12.988,0.13247053]
[1672774100403,5.0,12.995,12.988,0.13247053]
[1672774102410,15.24,12.993,12.988,0.13247053]
[1672774102618,5.0,12.992,12.988,0.13247053]
[1672774103349,5.0,12.992,12.987,0.0681733]
[1672774103774,15.24,12.989,12.987,7.33e-05]
[1672774104091,5.0,12.987,12.974,15.24]
[1672774104400,15.24,12.986,12.974,15.24]
[1672774104615,5.0,12.985,12.974,15.24]
[1672774104823,0.06985619,12.984,12.975,0.06064742]
[1672774105037,0.06985619,12.984,12.975,5.06064742]
[1672774105240,0.06985619,12.984,12.976,15.24]
[1672774106715,0.06985619,12.984,12.978,15.17]
[1672774112914,0.06985619,12.984,12.976,15.24]
[1672774113127,0.06985619,12.984,12.975,0.06064742]
[1672774117649,15.24,12.986,12.984,0.06584977]